bitfinex/quotes_BTCUSD_20250123
["timestamp","ask_amount","ask_price","bid_price","bid_amount"]
[1737602172773,0.85970425,102860.0,102850.0,8.29451573]
[1737602173347,0.89700425,102860.0,102850.0,8.29451573]
[1737602173587,1.00685151,102860.0,102850.0,7.90263037]
[1737602173803,1.00685151,102860.0,102850.0,7.81324147]
[1737602174030,0.90106594,102860.0,102850.0,7.81324147]
[1737602174231,0.89090981,102860.0,102850.0,7.81324147]
[1737602174430,0.88790981,102860.0,102850.0,7.81324147]
[1737602174629,0.89190981,102860.0,102850.0,7.81324147]
[1737602174854,0.89190981,102860.0,102850.0,7.81074147]
[1737602175444,0.85460981,102860.0,102850.0,7.81074147]
[1737602175680,0.83160981,102860.0,102850.0,7.81074147]
[1737602176191,0.85460981,102860.0,102850.0,7.81074147]
[1737602181179,0.85460981,102860.0,102850.0,7.77579455]
[1737602182704,0.85460981,102860.0,102850.0,7.74118455]
[1737602183235,0.95690981,102860.0,102850.0,7.74118455]
[1737602184095,0.85460981,102860.0,102850.0,7.74118455]
[1737602187795,0.85460981,102860.0,102850.0,7.7067755]
[1737602188805,0.80590981,102860.0,102850.0,7.7865755]
[1737602189617,0.80190981,102860.0,102850.0,7.7865755]
[1737602189841,0.80490981,102860.0,102850.0,7.7067755]
[1737602190269,0.80190981,102860.0,102850.0,7.7067755]
[1737602190792,0.80590981,102860.0,102850.0,7.7067755]
[1737602193381,0.80586981,102860.0,102850.0,7.7067755]
[1737602195159,0.80186981,102860.0,102850.0,7.7067755]
[1737602195389,0.80486981,102860.0,102850.0,7.7067755]
[1737602195830,0.80186981,102860.0,102850.0,7.7067755]
[1737602196227,0.9032171,102860.0,102850.0,7.7067755]
[1737602198657,0.80586981,102860.0,102850.0,7.7067755]
[1737602199425,0.80586981,102860.0,102850.0,7.7067355]
[1737602199907,0.89918981,102860.0,102850.0,7.7067355]
[1737602201789,0.83382304,102860.0,102850.0,7.7866355]
[1737602202250,0.85282304,102860.0,102850.0,7.7866355]
[1737602202550,0.91514353,102860.0,102850.0,7.7866355]
[1737602202748,0.84666304,102860.0,102850.0,7.7866355]
[1737602202957,0.85582304,102860.0,102850.0,7.7866355]
[1737602203567,0.69666304,102860.0,102850.0,7.8323355]
[1737602203711,0.63434255,102860.0,102850.0,7.8323355]
[1737602203914,0.68434255,102860.0,102850.0,7.8323355]
[1737602204158,0.63434255,102860.0,102850.0,7.8323355]
[1737602204360,0.63134255,102860.0,102850.0,7.8323355]
[1737602204793,0.63434255,102860.0,102850.0,7.8323355]
[1737602204914,0.68434255,102860.0,102850.0,7.8323355]
[1737602205123,0.63434255,102860.0,102850.0,7.8323355]
[1737602205964,0.74323973,102860.0,102850.0,7.8323355]
[1737602206163,0.73407973,102860.0,102850.0,7.8323355]
[1737602206399,0.74323973,102860.0,102850.0,7.8323355]
[1737602207161,0.74323973,102860.0,102850.0,7.7866355]
[1737602209946,0.89323973,102860.0,102850.0,7.7866355]
[1737602212279,0.99058702,102860.0,102850.0,7.7866355]
[1737602213061,0.89323973,102860.0,102850.0,7.7866355]
[1737602214461,0.78434255,102860.0,102850.0,7.7866355]
[1737602214871,0.89323973,102860.0,102850.0,7.7866355]
[1737602215050,0.89323973,102860.0,102850.0,7.8322355]
[1737602216391,0.67518255,102860.0,102850.0,7.8322355]
[1737602216717,0.63434255,102860.0,102850.0,7.8322355]
[1737602218559,0.65434255,102860.0,102850.0,7.8322355]
[1737602225981,0.72580488,102860.0,102850.0,7.8322355]
[1737602226457,0.72580488,102860.0,102850.0,7.9294635]
[1737602226458,0.60218255,102860.0,102850.0,7.9294635]
[1737602226671,0.51408355,102860.0,102850.0,7.9294635]
[1737602226929,0.51408355,102860.0,102850.0,8.00092583]
[1737602227135,0.61130255,102860.0,102850.0,7.9294635]
[1737602227342,0.65830255,102860.0,102850.0,7.9294635]
[1737602227550,0.64918255,102860.0,102850.0,7.9294635]
[1737602227759,0.65830255,102860.0,102850.0,7.9294635]
[1737602228169,0.51108355,102860.0,102850.0,7.9294635]
[1737602228328,0.50196355,102860.0,102850.0,7.9294635]
[1737602228528,0.51108355,102860.0,102850.0,7.9294635]
[1737602229118,0.60830255,102860.0,102850.0,7.9294635]
[1737602229338,0.59918255,102860.0,102850.0,7.9294635]
[1737602229544,0.60830255,102860.0,102850.0,7.9294635]
[1737602233891,0.88752495,102860.0,102850.0,7.7866355]
[1737602234101,1.03652495,102860.0,102850.0,7.7067355]
[1737602235089,1.12375945,102860.0,102850.0,7.7067355]
[1737602235464,1.02641216,102860.0,102850.0,7.610407]
[1737602235667,1.17258727,102860.0,102850.0,7.37654818]
[1737602235849,1.20049459,102860.0,102850.0,7.29121632]
[1737602236047,1.29784188,102860.0,102850.0,7.17517501]
[1737602236300,1.29784188,102860.0,102850.0,7.13628301]
[1737602236495,1.29684188,102860.0,102850.0,7.09622701]
[1737602236650,1.30084188,102860.0,102850.0,7.09622701]
[1737602237008,1.30084188,102860.0,102850.0,7.07678101]
[1737602237211,1.30084188,102860.0,102850.0,6.94925925]
[1737602237770,1.30084188,102860.0,102850.0,6.78581272]
[1737602238030,1.30084188,102860.0,102850.0,6.73436672]
[1737602238274,1.30084188,102860.0,102850.0,6.61547379]
[1737602238684,1.21360738,102860.0,102850.0,6.61547379]
[1737602238880,1.21360738,102860.0,102850.0,6.56656917]
[1737602239092,1.21360738,102860.0,102850.0,6.52767717]
[1737602239289,1.21360738,102860.0,102850.0,6.43363917]
[1737602239527,1.21360738,102860.0,102850.0,6.43163917]
[1737602239945,1.22160738,102860.0,102850.0,6.43263917]
[1737602240287,1.27992738,102860.0,102850.0,6.39374717]
[1737602240491,1.32390738,102860.0,102850.0,6.18519917]
[1737602240729,1.32390738,102860.0,102850.0,6.12130615]
[1737602240938,1.32390738,102860.0,102850.0,6.10770615]
[1737602241119,1.32390738,102860.0,102850.0,6.01594628]
[1737602241336,1.38730732,102860.0,102850.0,5.58454224]
[1737602241551,1.67395638,102860.0,102850.0,5.44796429]
[1737602241745,1.67395638,102860.0,102850.0,5.24567487]
[1737602241943,1.67395638,102860.0,102850.0,5.23938606]
[1737602242177,1.66995638,102860.0,102850.0,5.18104806]
[1737602242397,1.66995638,102860.0,102850.0,5.16160206]
[1737602242614,1.66695638,102860.0,102850.0,5.10435606]
[1737602242860,1.66695638,102860.0,102850.0,2.33886606]
[1737602243077,1.60861638,102860.0,102850.0,2.27857537]
[1737602243251,1.60861638,102860.0,102850.0,2.22023737]
[1737602243421,1.61761638,102860.0,102850.0,2.19526837]
[1737602244030,1.61761638,102860.0,102850.0,2.17582237]
[1737602244941,1.61761638,102860.0,102850.0,2.15637637]
[1737602245144,1.61761638,102860.0,102850.0,2.00435037]
[1737602246070,1.61761638,102860.0,102850.0,1.96942786]
[1737602246280,1.61761638,102860.0,102850.0,1.91108986]
[1737602246443,1.61761638,102860.0,102850.0,1.89164386]
[1737602247137,1.61761638,102860.0,102850.0,1.85275186]
[1737602247401,1.58096732,102860.0,102850.0,1.81385986]
[1737602247533,1.58096732,102860.0,102850.0,1.79441386]
[1737602247741,1.61761638,102860.0,102850.0,1.79441386]
[1737602247973,1.61761638,102860.0,102850.0,1.77496786]
[1737602248199,1.58096732,102860.0,102850.0,1.69718386]
[1737602248979,1.58096732,102860.0,102850.0,1.67773786]
[1737602249362,1.58096732,102860.0,102850.0,1.63884586]
[1737602249565,1.58096732,102860.0,102850.0,1.61939986]
[1737602249967,1.58096732,102860.0,102850.0,1.59995386]
[1737602250840,1.58096732,102860.0,102850.0,1.54161586]
[1737602251049,1.47866732,102860.0,102850.0,1.52216986]
[1737602252047,1.45176,102860.0,102850.0,1.52216986]
[1737602252929,1.45172,102860.0,102850.0,1.52216986]
[1737602254546,1.45172,102860.0,102850.0,1.40861332]
[1737602254749,1.45172,102860.0,102850.0,1.21310231]
[1737602254989,1.47862732,102860.0,102850.0,1.15826399]
[1737602255199,1.47862732,102860.0,102850.0,1.09992599]
[1737602256065,1.47862732,102860.0,102850.0,1.06103399]
[1737602256269,1.47862732,102860.0,102850.0,0.98635056]
[1737602256493,1.47862732,102860.0,102850.0,0.94547792]
[1737602256854,1.58092732,102860.0,102850.0,0.88198746]
[1737602257107,1.55628717,102860.0,102850.0,0.37327233]
[1737602257313,1.55517729,102860.0,102850.0,0.18081656]
[1737602257529,1.55517729,102860.0,102850.0,0.16758299]
[1737602257747,1.52040431,102860.0,102850.0,0.13148299]
[1737602258111,1.51540431,102860.0,102850.0,0.05369899]
[1737602258318,1.51940431,102860.0,102850.0,0.03425299]
[1737602258761,1.51040431,102860.0,102850.0,0.03325299]
[1737602258978,1.50640431,102860.0,102850.0,0.01380699]
[1737602259185,1.51540431,102860.0,102850.0,9.9e-07]
[1737602260326,0.120238,102840.0,102830.0,0.00025982]
[1737602260513,0.50673174,102840.0,102830.0,0.00025982]
[1737602260668,0.76470747,102840.0,102830.0,0.00025982]
[1737602260874,0.81360747,102840.0,102830.0,0.00025982]
[1737602261521,0.81660747,102840.0,102830.0,0.00025982]
[1737602262208,0.82560747,102840.0,102830.0,0.00025982]
[1737602262625,1.07560747,102840.0,102830.0,0.00025982]
[1737602262836,1.11449947,102840.0,102830.0,0.00025982]
[1737602263036,0.22912211,102830.0,102820.0,0.07749904]
[1737602263205,0.43762316,102830.0,102820.0,0.07749904]
[1737602263668,0.43762316,102830.0,102820.0,0.12459904]
[1737602263871,0.43762316,102830.0,102820.0,0.12451017]
[1737602264276,0.44062316,102830.0,102820.0,0.12451017]
[1737602264935,0.44970316,102830.0,102820.0,0.12451017]
[1737602265315,0.45570316,102830.0,102820.0,0.12451017]
[1737602266389,0.55305045,102830.0,102820.0,0.12451017]
[1737602266610,0.55305045,102830.0,102820.0,0.07741017]
[1737602268045,0.63993817,102830.0,102820.0,0.07741017]
[1737602268382,0.64983586,102830.0,102820.0,0.07741017]
[1737602269633,0.55248857,102830.0,102820.0,0.07741017]
[1737602269833,0.55248857,102830.0,102820.0,0.12451017]
[1737602270006,0.70248857,102830.0,102820.0,0.12451017]
[1737602270417,0.70263107,102830.0,102820.0,0.12451017]
[1737602271531,0.61574335,102830.0,102820.0,0.12451017]
[1737602273329,0.60666335,102830.0,102820.0,0.12451017]
[1737602273529,0.61574335,102830.0,102820.0,0.12451017]
[1737602274191,0.60666335,102830.0,102820.0,0.12451017]
[1737602274341,0.61574335,102830.0,102820.0,0.12451017]
[1737602276859,0.32478824,102830.0,102820.0,0.12451017]
[1737602277061,0.43366335,102830.0,102820.0,0.12451017]
[1737602277302,0.21764355,102830.0,102820.0,0.12451017]
[1737602277509,0.21764355,102830.0,102820.0,0.22176717]
[1737602277510,0.22672355,102830.0,102820.0,0.22176717]
[1737602277891,0.27372355,102830.0,102820.0,0.22176717]
[1737602278069,0.21772355,102830.0,102820.0,0.22176717]
[1737602278279,0.27072355,102830.0,102820.0,0.22176717]
[1737602278594,0.26772355,102830.0,102820.0,0.22176717]
[1737602278999,0.21772355,102830.0,102820.0,0.22176717]
[1737602279251,0.21972355,102830.0,102820.0,0.22176717]
[1737602279658,0.26972355,102830.0,102820.0,0.22176717]
[1737602279988,0.26772355,102830.0,102820.0,0.22176717]
[1737602280409,0.44684566,102830.0,102820.0,0.12451017]
[1737602280622,0.44784566,102830.0,102820.0,0.12451017]
[1737602280800,0.44784566,102830.0,102820.0,0.07741017]
[1737602282370,0.53508589,102830.0,102820.0,0.07741017]
[1737602283211,0.78243318,102830.0,102820.0,0.07741017]
[1737602284110,0.96701561,102830.0,102820.0,0.00021017]
[1737602284695,0.97001561,102830.0,102820.0,0.00021017]
[1737602285322,0.36491454,102820.0,102810.0,0.00029904]
[1737602285527,0.57341559,102820.0,102810.0,0.00029904]
[1737602285680,0.67076288,102820.0,102810.0,0.00029904]
[1737602286478,0.67076288,102820.0,102810.0,0.00019199]
[1737602287091,0.67376288,102820.0,102810.0,0.00019199]
[1737602288088,0.67976288,102820.0,102810.0,0.00019199]
[1737602290733,1.03257027,102820.0,102810.0,0.00019199]
[1737602291861,1.05179849,102820.0,102810.0,0.00019199]
[1737602292476,1.02489117,102820.0,102810.0,0.00019199]
[1737602294098,0.80470877,102820.0,102810.0,0.07659199]
[1737602294500,0.97770877,102820.0,102810.0,0.07659199]
[1737602294820,0.72770877,102820.0,102810.0,0.07659199]
[1737602294956,0.70470877,102820.0,102810.0,0.07659199]
[1737602295156,0.71511877,102820.0,102810.0,0.07659199]
[1737602295361,0.44583366,102820.0,102810.0,0.07659199]
[1737602295572,0.55470877,102820.0,102810.0,0.07659199]
[1737602295815,0.70470877,102820.0,102810.0,0.07659199]
[1737602296416,0.83658388,102820.0,102810.0,0.07659199]
[1737602296569,0.72770877,102820.0,102810.0,0.07659199]
[1737602298673,0.83658388,102820.0,102810.0,0.07659199]
[1737602298824,0.72770877,102820.0,102810.0,0.07659199]
[1737602301230,0.57770877,102820.0,102810.0,0.07659199]
[1737602301618,0.56866877,102820.0,102810.0,0.07659199]
[1737602301780,0.57770877,102820.0,102810.0,0.07659199]
[1737602303215,0.46883366,102820.0,102810.0,0.07659199]
[1737602303405,0.59770877,102820.0,102810.0,0.07659199]
[1737602303618,0.48711805,102820.0,102810.0,0.07659199]
[1737602303820,0.38082105,102820.0,102810.0,0.17385799]
[1737602304043,1.25816105,102820.0,102810.0,0.07659199]
[1737602304246,1.25816105,102820.0,102810.0,0.21955799]
[1737602304780,1.25516105,102820.0,102810.0,0.21955799]
[1737602304927,1.24916105,102820.0,102810.0,0.21955799]
[1737602305258,1.25430355,102820.0,102810.0,0.21955799]
[1737602307258,1.18430355,102820.0,102810.0,0.21955799]
[1737602307545,1.25430355,102820.0,102810.0,0.21955799]
[1737602307955,1.17526355,102820.0,102810.0,0.21955799]
[1737602308171,1.17326355,102820.0,102810.0,0.21955799]
[1737602308378,1.18230355,102820.0,102810.0,0.21955799]
[1737602308551,1.17930355,102820.0,102810.0,0.21955799]
[1737602309524,1.17026355,102820.0,102810.0,0.21955799]
[1737602309680,1.17930355,102820.0,102810.0,0.21955799]
[1737602310477,1.17026355,102820.0,102810.0,0.21955799]
[1737602310739,1.17930355,102820.0,102810.0,0.21955799]
[1737602311105,1.17930355,102820.0,102810.0,0.22055799]
[1737602311886,1.17026355,102820.0,102810.0,0.22055799]
[1737602312087,0.31100355,102820.0,102810.0,0.22055799]
[1737602312287,0.3982448,102820.0,102810.0,0.22055799]
[1737602312740,0.3892048,102820.0,102810.0,0.22055799]
[1737602312962,0.3982048,102820.0,102810.0,0.22055799]
[1737602313734,0.3892048,102820.0,102810.0,0.22055799]
[1737602313938,0.3982048,102820.0,102810.0,0.22055799]
[1737602315343,0.3892048,102820.0,102810.0,0.22055799]
[1737602315561,0.3982048,102820.0,102810.0,0.22055799]
[1737602316171,0.31096355,102820.0,102810.0,0.22055799]
[1737602316992,0.31096355,102820.0,102810.0,0.37055799]
[1737602317215,0.25186355,102820.0,102810.0,0.4794331]
[1737602317578,0.23286355,102820.0,102810.0,0.4794331]
[1737602320242,0.23286355,102820.0,102810.0,0.37055799]
[1737602320466,0.22386355,102820.0,102810.0,0.36955799]
[1737602320631,0.23286355,102820.0,102810.0,0.37155799]
[1737602321257,0.23286355,102820.0,102810.0,0.36955799]
[1737602321490,0.23286355,102820.0,102810.0,0.37155799]
[1737602328923,0.23286355,102820.0,102810.0,0.26882399]
[1737602331928,0.23286355,102820.0,102810.0,0.34382399]
[1737602332999,0.26194678,102820.0,102810.0,0.34382399]
[1737602334403,0.23286355,102820.0,102810.0,0.34382399]
[1737602335589,0.23286355,102820.0,102810.0,0.4526991]
[1737602335999,0.23298343,102820.0,102810.0,0.4526991]
[1737602336420,0.23298343,102820.0,102810.0,0.34382399]
[1737602337586,0.23298343,102820.0,102810.0,0.4526991]
[1737602339224,0.26211096,102820.0,102810.0,0.4526991]
[1737602339626,0.26211096,102820.0,102810.0,0.34382399]
[1737602340091,0.26211096,102820.0,102810.0,0.34412324]
[1737602340590,0.23298343,102820.0,102810.0,0.34412324]
[1737602343344,0.23298343,102820.0,102810.0,0.45299835]
[1737602343553,0.75589614,102820.0,102810.0,0.45299835]
[1737602343780,0.75589614,102820.0,102810.0,0.56187346]
[1737602344188,0.74673614,102820.0,102810.0,0.56187346]
[1737602344392,0.75589614,102820.0,102810.0,0.56187346]
[1737602347638,0.21389614,102820.0,102810.0,0.56187346]
[1737602347898,0.21389614,102820.0,102810.0,0.47211513]
[1737602349000,0.23289614,102820.0,102810.0,0.47211513]
[1737602349205,0.31124343,102820.0,102810.0,0.17456525]
[1737602349413,0.31124343,102820.0,102810.0,0.09956525]
[1737602349619,0.51737554,102820.0,102810.0,0.00229925]
[1737602349828,0.50840043,102820.0,102810.0,0.00229925]
[1737602350068,0.41114343,102820.0,102810.0,0.09956525]
[1737602350308,0.50840043,102820.0,102810.0,0.09956525]
[1737602350522,0.41114343,102820.0,102810.0,0.09956525]
[1737602350730,0.50840043,102820.0,102810.0,0.09756525]
[1737602351031,0.50840043,102820.0,102810.0,0.09956525]
[1737602352638,0.50840043,102820.0,102810.0,0.10256525]
[1737602353814,0.41114343,102820.0,102810.0,0.10256525]
[1737602354019,0.49838468,102820.0,102810.0,0.10256525]
[1737602354653,0.49838468,102820.0,102810.0,0.10353781]
[1737602354899,0.44848468,102820.0,102810.0,0.10256525]
[1737602355304,0.39848468,102820.0,102810.0,0.18653777]
[1737602355509,0.39848468,102820.0,102810.0,0.18556525]
[1737602356917,0.38932468,102820.0,102810.0,0.18653774]
[1737602357093,0.38932468,102820.0,102810.0,0.18556525]
[1737602357094,0.39848468,102820.0,102810.0,0.18556525]
[1737602358733,0.39848468,102820.0,102810.0,0.10256525]
[1737602358940,0.49574168,102820.0,102810.0,0.10256525]
[1737602359144,0.65461679,102820.0,102810.0,0.00529925]
[1737602359377,0.54574168,102820.0,102810.0,0.00529925]
[1737602359557,0.62504168,102820.0,102810.0,0.00529925]
[1737602359961,0.62504168,102820.0,102810.0,0.10256525]
[1737602360333,0.51862468,102820.0,102810.0,0.10256525]
[1737602360758,0.52778468,102820.0,102810.0,0.10256525]
[1737602361351,0.62504168,102820.0,102810.0,0.00529925]
[1737602361558,0.80221679,102820.0,102810.0,0.00529925]
[1737602361773,1.62351679,102820.0,102810.0,0.00529925]
[1737602362007,0.75521679,102820.0,102810.0,0.00529925]
[1737602362218,0.90521679,102820.0,102810.0,0.00529925]
[1737602363093,0.05,102800.0,102790.0,0.2928268]
[1737602363309,0.25850105,102800.0,102790.0,0.29200478]
[1737602363612,0.35577705,102800.0,102790.0,0.29200478]
[1737602364690,0.25850105,102800.0,102790.0,0.29200478]
[1737602364918,0.25950105,102800.0,102790.0,0.29200478]
[1737602365150,0.21866105,102800.0,102790.0,0.29200478]
[1737602365854,0.21966105,102800.0,102790.0,0.29200478]
[1737602366522,0.3569023,102800.0,102790.0,0.29200478]
[1737602366730,0.3549023,102800.0,102790.0,0.29200478]
[1737602366939,0.3549023,102800.0,102790.0,0.29500478]
[1737602367135,0.3049023,102800.0,102790.0,0.44500478]
[1737602367336,0.3049023,102800.0,102790.0,0.52070478]
[1737602367551,0.3049023,102800.0,102790.0,0.52370478]
[1737602368541,0.2957423,102800.0,102790.0,0.52370478]
[1737602368792,0.3049023,102800.0,102790.0,0.63257989]
[1737602369319,0.21766105,102800.0,102790.0,0.63257989]
[1737602369567,0.22750105,102800.0,102790.0,0.63257989]
[1737602369767,0.23666105,102800.0,102790.0,0.63257989]
[1737602369973,0.21766105,102800.0,102790.0,0.52370478]
[1737602371050,0.21766105,102800.0,102790.0,0.63257989]
[1737602371390,0.23666105,102800.0,102790.0,0.64249898]
[1737602372168,0.21766105,102800.0,102790.0,0.53362387]
[1737602373479,0.21750105,102800.0,102790.0,0.53362387]
[1737602373989,0.24653997,102800.0,102790.0,0.53362387]
[1737602375221,0.24653997,102800.0,102790.0,0.53392312]
[1737602379705,0.24653997,102800.0,102790.0,0.45522312]
[1737602380165,0.21750105,102800.0,102790.0,0.45522312]
[1737602386162,0.21750105,102800.0,102790.0,0.64619823]
[1737602386369,0.23650105,102800.0,102790.0,0.64619823]
[1737602387394,0.21722908,102800.0,102790.0,0.64619823]
[1737602388012,0.11115376,102800.0,102790.0,0.64619823]
[1737602388397,0.12015376,102800.0,102790.0,0.69249823]
[1737602389281,0.11115376,102800.0,102790.0,0.68949823]
[1737602389489,0.12015376,102800.0,102790.0,0.69149823]
[1737602389691,0.12015376,102800.0,102790.0,0.69449823]
[1737602390156,0.11115376,102800.0,102790.0,0.69449823]
[1737602390373,0.12015376,102800.0,102790.0,0.69449823]
[1737602390581,0.12015376,102800.0,102790.0,0.69249823]
[1737602392106,0.12015376,102800.0,102790.0,0.69449823]
[1737602392955,0.12015376,102800.0,102790.0,0.71443268]
[1737602399800,0.12029626,102800.0,102790.0,0.71443268]
[1737602403215,0.23664355,102800.0,102790.0,0.38932312]
[1737602403420,0.21764355,102800.0,102790.0,0.30722312]
[1737602404286,0.34484355,102800.0,102790.0,0.30722312]
[1737602404439,0.44211955,102800.0,102790.0,0.29730403]
[1737602404648,0.44211955,102800.0,102790.0,0.10273303]
[1737602404853,0.34484355,102800.0,102790.0,0.10273303]
[1737602405317,0.44211955,102800.0,102790.0,0.10273303]
[1737602405513,0.44211955,102800.0,102790.0,0.09973303]
[1737602405954,0.44211955,102800.0,102790.0,0.10073303]
[1737602407110,0.44211955,102800.0,102790.0,0.10273303]
[1737602407306,0.34484355,102800.0,102790.0,0.10273303]
[1737602407739,0.44211955,102800.0,102790.0,0.10273303]
[1737602408698,0.34484355,102800.0,102790.0,0.10273303]
[1737602409769,0.3541848,102800.0,102790.0,0.10370578]
[1737602409974,0.3541848,102800.0,102790.0,0.10273303]
[1737602414634,0.4304848,102800.0,102790.0,0.10273303]
[1737602415841,0.5277608,102800.0,102790.0,0.10273303]
[1737602417908,0.68663591,102800.0,102790.0,0.00545003]
[1737602418123,0.68663591,102800.0,102790.0,0.10273503]
[1737602418355,0.5777608,102800.0,102790.0,0.10273503]
[1737602418608,0.5777608,102800.0,102790.0,0.00545003]
[1737602419244,0.5777608,102800.0,102790.0,0.10273503]
[1737602423398,0.5777608,102800.0,102790.0,0.00545003]
[1737602426742,0.5777608,102800.0,102790.0,0.10273503]
[1737602427775,0.5777608,102800.0,102790.0,0.00545003]
[1737602428163,0.5777608,102800.0,102790.0,0.10273503]
[1737602432257,0.5777608,102800.0,102790.0,0.10803061]
[1737602433103,0.5777608,102800.0,102790.0,0.01074561]
[1737602434500,0.5777608,102800.0,102790.0,0.10803061]
[1737602436148,0.70663591,102800.0,102790.0,0.01074561]
[1737602436606,0.78834455,102800.0,102790.0,0.01074561]
[1737602436814,0.89734455,102800.0,102790.0,0.01074561]
[1737602437030,0.80963591,102800.0,102790.0,0.01074561]
[1737602437238,0.82963591,102800.0,102790.0,0.01074561]
[1737602437444,0.80963591,102800.0,102790.0,0.00874561]
[1737602437723,0.80963591,102800.0,102790.0,0.00045003]
[1737602437899,0.65963591,102800.0,102790.0,0.00946471]
[1737602438268,0.67916683,102800.0,102790.0,0.01047071]
[1737602438793,0.67916683,102800.0,102790.0,0.00947071]
[1737602439359,0.54729172,102800.0,102790.0,0.00747071]
[1737602439607,0.4524608,102800.0,102790.0,0.10475571]
[1737602439776,1.3207608,102800.0,102790.0,0.10475571]
[1737602440127,1.3217608,102800.0,102790.0,0.00747071]
[1737602440371,1.43063591,102800.0,102790.0,0.00747071]
[1737602440976,1.34339466,102800.0,102790.0,0.00747071]
[1737602441221,1.36339466,102800.0,102790.0,0.00747071]
[1737602441482,1.46859466,102800.0,102790.0,0.00747071]
[1737602443463,1.46704523,102800.0,102790.0,0.00747071]
[1737602443668,1.44859466,102800.0,102790.0,0.00747071]
[1737602445230,1.733,102780.0,102770.0,0.291889]
[1737602445434,1.95050105,102780.0,102770.0,0.291889]
[1737602446242,1.95050105,102780.0,102770.0,0.29654278]
[1737602446485,1.95050105,102780.0,102770.0,0.29854278]
[1737602447417,1.95050105,102780.0,102770.0,0.30154278]
[1737602448596,0.54020105,102780.0,102770.0,0.30154278]
[1737602452413,0.68749605,102780.0,102770.0,0.30154278]
[1737602452621,0.73259605,102780.0,102770.0,0.30154278]
[1737602453407,0.72256662,102780.0,102770.0,0.30154278]
[1737602453608,0.81986162,102780.0,102770.0,0.30154278]
[1737602454041,0.81986162,102780.0,102770.0,0.29854278]
[1737602454526,1.03093673,102780.0,102770.0,0.00865378]
[1737602454729,0.70823673,102780.0,102770.0,0.00865378]
[1737602454882,0.70823673,102780.0,102770.0,0.00665378]
[1737602455289,0.70823673,102780.0,102770.0,0.00765378]
[1737602456623,0.73123673,102780.0,102770.0,0.00765378]
[1737602457412,0.68123673,102780.0,102770.0,0.00765378]
[1737602457638,0.79011184,102780.0,102770.0,0.00765378]
[1737602457980,0.78942496,102780.0,102770.0,0.00765378]
[1737602458303,0.68054985,102780.0,102770.0,0.00765378]
[1737602458503,0.68054985,102780.0,102770.0,0.00795303]
[1737602458726,0.78942496,102780.0,102770.0,0.00795303]
[1737602459143,0.93942496,102780.0,102770.0,0.00795303]
[1737602459535,0.93942496,102780.0,102770.0,0.00329925]
[1737602459762,1.18942496,102780.0,102770.0,0.00329925]
[1737602459977,1.18942496,102780.0,102770.0,0.00797952]
[1737602460222,1.18942496,102780.0,102770.0,0.00597952]
[1737602460449,0.089,102770.0,102760.0,0.00029925]
[1737602460617,0.089,102770.0,102740.0,0.00029925]
[1737602460618,0.292423,102750.0,102740.0,0.00029925]
[1737602460818,0.71867427,102750.0,102740.0,0.00029925]
[1737602461037,0.62979916,102750.0,102740.0,0.00029925]
[1737602461245,0.60979916,102750.0,102740.0,0.00029925]
[1737602461453,0.63279916,102750.0,102740.0,0.00029925]
[1737602461607,0.58089916,102750.0,102740.0,0.00129925]
[1737602462004,0.58089916,102750.0,102740.0,0.00180206]
[1737602462224,0.58089916,102750.0,102740.0,0.00080206]
[1737602462483,0.58189916,102750.0,102740.0,0.00080206]
[1737602463558,0.61189916,102750.0,102740.0,0.00080206]
[1737602463750,0.54279916,102750.0,102740.0,0.00080206]
[1737602463947,0.49279916,102750.0,102740.0,0.00080206]
[1737602464169,0.54279916,102750.0,102740.0,0.00080206]
[1737602464542,0.5120532,102750.0,102740.0,0.00080206]
[1737602464683,0.5320532,102750.0,102740.0,0.00080206]
[1737602464889,0.54179598,102750.0,102740.0,0.00080206]
[1737602465488,0.57179598,102750.0,102740.0,0.00080206]
[1737602465698,1.22337809,102750.0,102740.0,0.00080206]
[1737602466142,1.3322532,102750.0,102740.0,0.00080206]
[1737602467899,1.41936924,102750.0,102740.0,0.00080206]
[1737602470407,1.41036924,102750.0,102740.0,0.00080206]
[1737602470609,1.41936924,102750.0,102740.0,0.00080206]
[1737602472553,1.22391709,102750.0,102740.0,0.09813506]
[1737602472773,1.32124009,102750.0,102740.0,0.09813506]
[1737602474445,1.32124009,102750.0,102740.0,0.00080206]
[1737602474706,1.8387376,102750.0,102740.0,0.00080206]
[1737602474937,1.8877376,102750.0,102740.0,0.00080206]
[1737602476165,1.6815152,102750.0,102740.0,0.00080206]
[1737602476616,1.79039031,102750.0,102740.0,0.00080206]
[1737602476849,1.70327427,102750.0,102740.0,0.00080206]
[1737602477296,1.53499916,102750.0,102740.0,0.00080206]
[1737602478509,0.66669916,102750.0,102740.0,0.00080206]
[1737602479764,0.20950105,102750.0,102740.0,0.17863506]
[1737602479981,0.21850105,102750.0,102740.0,0.22730831]
[1737602480202,0.21850105,102750.0,102740.0,0.22633506]
[1737602480760,0.21750105,102750.0,102740.0,0.22633506]
[1737602482570,0.21750105,102750.0,102740.0,0.23587992]
[1737602483021,0.20850105,102750.0,102740.0,0.23587992]
[1737602483196,0.23650105,102750.0,102740.0,0.38587992]
[1737602483644,0.20850105,102750.0,102740.0,0.38587992]
[1737602483848,0.21750105,102750.0,102740.0,0.38587992]
[1737602484173,0.23650105,102750.0,102740.0,0.49475503]
[1737602484425,0.12015376,102750.0,102740.0,0.49575503]
[1737602485762,0.12015376,102750.0,102740.0,0.49475503]
[1737602486190,0.12015376,102750.0,102740.0,0.49575503]
[1737602486601,0.12015376,102750.0,102740.0,0.49475503]
[1737602487033,0.12015376,102750.0,102740.0,0.49575503]
[1737602488063,0.12015376,102750.0,102740.0,0.51575503]
[1737602488265,0.11115376,102750.0,102740.0,0.51575503]
[1737602488638,0.12015376,102750.0,102740.0,0.51575503]
[1737602488845,0.4628175,102760.0,102750.0,0.267323]
[1737602489057,0.4718175,102760.0,102750.0,0.48507322]
[1737602489263,0.4628175,102760.0,102750.0,0.48507322]
[1737602489497,0.7547775,102760.0,102750.0,0.61327322]
[1737602489704,0.7637375,102760.0,102750.0,0.61327322]
[1737602490530,0.7637375,102760.0,102750.0,0.61627322]
[1737602490772,0.7637375,102760.0,102750.0,0.61727322]
[1737602491417,0.7547775,102760.0,102750.0,0.61727322]
[1737602491597,0.7637375,102760.0,102750.0,0.61727322]
[1737602493181,0.30092,102760.0,102750.0,0.61727322]
[1737602493563,0.3010625,102760.0,102750.0,0.61727322]
[1737602494285,0.2921025,102760.0,102750.0,0.61727322]
[1737602494513,0.3010625,102760.0,102750.0,0.61727322]
[1737602494742,0.2037475,102760.0,102750.0,0.63624842]
[1737602495129,0.01654328,102760.0,102750.0,3.34159571]
[1737602495380,0.00896,102770.0,102760.0,0.396414]
[1737602495585,0.00896,102770.0,102760.0,0.51502981]
[1737602495798,0.30089,102770.0,102760.0,0.51502981]
[1737602496886,0.29193,102770.0,102760.0,0.53902981]
[1737602497130,0.30089,102770.0,102760.0,0.53902981]
[1737602497332,0.30089,102770.0,102760.0,0.54102981]
[1737602497533,0.00896,102780.0,102770.0,0.396404]
[1737602497741,0.46296,102790.0,102780.0,0.177295]
[1737602497944,0.56926729,102790.0,102780.0,0.28714285]